[Event "2nd Cambridge Open 2024"]
[Site "Cambridge"]
[Date "2024.02.21"]
[Round "4.6"]
[White "Jermy, Jaden"]
[Black "Pozzari, Simone"]
[Result "0-1"]
[ECO "E11"]
[WhiteElo "1968"]
[BlackElo "2282"]
[Annotator "TA"]
[PlyCount "120"]
[EventDate "2024.02.18"]
[EventType "swiss"]
[EventCountry "ENG"]
[SourceTitle "playchess.com"]
[Source "ChessBase"]
[SourceQuality "1"]
[TimeControl "5400+30"]

{[%evp 14,120,7,-6,20,19,21,11,18,-1,0,-33,-39,-47,-9,-10,0,-12,-16,-18,19,10,29,35,49,-20,-13,-7,8,-100,0,0,0,0,29,11,14,-24,-17,-22,-13,-13,-30,-23,0,0,0,0,0,0,0,-70,-83,-147,-158,-304,-307,-461,-342,-277,-375,-368,-368,-317,-293,-293,-277,-262,-144,-144,-144,-144,-144,-163,-164,-893,-654,-1249,-1080,-6191,-6038,-29958,-29967,-29970,-29971,-29971,-29972,-29972,-29973,-29969,-29967,-29963,-29965,-29982,-29983,-29987,-29985,-29989,-29989,-29990,-29986,-29986,-29987,-29987,-29988,-29991,-29992,-29994,-29995]} 1. d4 {[%emt 0:00:04]} d5 {[%emt 0:06:51]} 2. Nf3 {[%emt 0:00:22]} Nf6 {[%emt 0:00:06]} 3. c4 {[%emt 0:00:23]} e6 {[%emt 0:00:08]} 4. g3 {[%emt 0:00:06]} Bb4+ {[%emt 0:00:22]} 5. Bd2 {[%emt 0:00:23]} Be7 {[%emt 0:00:09]} 6. Bg2 {[%emt 0:00:06]} O-O {[%emt 0:00:14]} 7. Qc2 {[%emt 0:00:01]} c6 {[%emt 0:00:21]} 8. O-O {[%emt 0:00:16]} Ne4 {[%emt 0:00:06]} 9. Nc3 {[%emt 0:07:13]} Nxd2 {[%emt 0:00:11]} 10. Qxd2 {[%emt 0:00:59]} dxc4 {[%emt 0:03:49] Die Stellung ist ausgeglichen.} 11. a4 {[%emt 0:03:57]} Nd7 {[%emt 0:09:43]} 12. Rfd1 {[%emt 0:02:18]} a5 {[%emt 0:01:50]} 13. Qc2 {[%emt 0:03:58]} Rb8 {[%emt 0:03:06]} 14. Nd2 {[%emt 0:10:30]} Nb6 {[%emt 0:07:48]} 15. e3 {[%emt 0:04:18] [#]} e5 $1 {[%emt 0:02:15]} 16. dxe5 {[%emt 0:01:48][%cal Od2c4]} Qc7 {[%emt 0:00:38]} 17. f4 {[%emt 0:03:32]} Bg4 {[%emt 0:04:47]} 18. Bf3 {[%emt 0:13:47]} Be6 {[%emt 0:09:55]} 19. e4 {[%emt 0:03:53]} (19. Ne2 $14) 19... Rbd8 $11 {[%emt 0:01:46]} 20. Be2 {[%emt 0:01:25]} f5 {[%emt 0:02:07]} 21. Bf3 {[%emt 0:10:37]} (21. exf6 $11 gxf6 22. Kg2) 21... Rd3 {[%emt 0:08:31] Schwarz steht deutlich aktiver.} ({Günstiger ist} 21... g5 $1 $17 {...gxf4 ist eine echte Drohung.} 22. exf5 Bxf5) 22. exf5 {[%emt 0:04:29]} Bxf5 {[%emt 0:01:24]} 23. Be4 {[%emt 0:00:03] Droht stark Bxf5.} Bxe4 {[%emt 0:00:53]} 24. Ndxe4 {[%emt 0:00:30] Ein dynamisches Springerpaar.} Rfd8 $1 {[%emt 0:00:10]} 25. b3 {[%emt 0:01:26]} (25. Nf2 {vereinfacht} Rxd1+ 26. Rxd1 Nd5 27. Nce4) 25... Qd7 {[%emt 0:13:00]} 26. bxc4 $1 {[%emt 0:02:57] Und c5 würde nun gewinnen.} Qd4+ {[%emt 0:03:13]} (26... Nxc4 27. Kh1 $11) 27. Qf2 {[%emt 0:04:17]} Qxf2+ {[%emt 0:02:52]} ({Doch nicht} 27... Nxc4 28. Rxd3 Qxd3 29. Rd1 $14) 28. Kxf2 {[%emt 0:00:11]} Rxd1 {[%emt 0:02:34]} 29. Rxd1 {[%emt 0:01:14]} Rxd1 {[%emt 0:00:10]} 30. Nxd1 {[%emt 0:00:01]} Nxa4 {[%emt 0:00:11][%mdl 4096] Endspiel. KBN-KNN} 31. Ke3 {[%emt 0:00:59]} Nc5 {[%emt 0:01:25]} 32. Nxc5 {[%emt 0:05:57]} (32. Ndc3 $11) 32... Bxc5+ {[%emt 0:00:03] KB-KN} 33. Kd3 {[%emt 0:00:19]} ({Vorzuziehen ist} 33. Ke4) 33... Bg1 $1 $17 {[%emt 0:02:26]} 34. Ke4 {[%emt 0:03:47]} (34. Ke2 $17 {ist eine bessere Verteidigung.}) 34... Bxh2 $19 {[%emt 0:00:33]} 35. g4 {[%emt 0:00:09]} (35. Kf3 $142 Bg1 36. Nc3) 35... b5 {[%emt 0:01:23]} 36. cxb5 {[%emt 0:00:25]} cxb5 {[%emt 0:00:02]} 37. Nc3 {[%emt 0:01:56]} b4 {[%emt 0:00:02]} 38. Na4 {[%emt 0:00:05]} Kf7 {[%emt 0:00:34]} 39. f5 {[%emt 0:00:21]} h6 {[%emt 0:00:43]} 40. Nb6 {[%emt 0:04:08]} Bg3 {[%emt 0:01:36]} (40... Bg1 $19 41. e6+ Ke8) 41. e6+ $17 {[%emt 0:00:50]} Ke8 $1 {[%emt 0:02:43]} 42. Kd3 {[%emt 0:00:42] [#]} Bf2 $1 {[%emt 0:01:59]} 43. Na4 {[%emt 0:01:34]} Ke7 {[%emt 0:00:10][%cal Og7g6]} 44. Kc4 $2 {[%emt 0:00:38] [#]} (44. Nb2) 44... g6 $1 $19 {[%emt 0:02:27][%mdl 512] Droht ...gxf5 und aus.} 45. fxg6 {[%emt 0:05:00] Weiss droht g7 und Matt.} (45. Kd5 gxf5) 45... Kxe6 {[%emt 0:00:02]} 46. Kb5 {[%emt 0:00:18]} Kf6 {[%emt 0:00:47]} 47. Kxa5 {[%emt 0:00:14]} Be1 {[%emt 0:02:31] Schwarz setzt Matt.} 48. Kb5 {[%emt 0:01:31]} Kxg6 {[%emt 0:00:07]} 49. Kc4 {[%emt 0:00:28]} Kg5 {[%emt 0:00:05]} 50. Kd3 {[%emt 0:00:05]} Kxg4 {[%emt 0:00:06]} 51. Ke2 {[%emt 0:00:35]} Bc3 {[%emt 0:00:14]} 52. Nc5 {[%emt 0:00:09]} h5 {[%emt 0:00:20]} 53. Nd3 {[%emt 0:01:11]} b3 {[%emt 0:00:45]} 54. Kf2 {[%emt 0:00:08]} h4 {[%emt 0:00:29]} 55. Kg2 {[%emt 0:00:43]} h3+ {[%emt 0:00:27]} 56. Kf2 {[%emt 0:00:39]} h2 {[%emt 0:00:48]} 57. Kg2 {[%emt 0:00:16] [#]} h1=Q+ $1 {[%emt 0:00:10]} 58. Kxh1 {[%emt 0:00:01]} Kf3 {[%emt 0:00:09]} 59. Kh2 {[%emt 0:00:38]} Ke3 {[%emt 0:00:06]} 60. Ne5 {[%emt 0:01:03]} Bxe5+ {[%emt 0:00:07] Gewichteter Fehlerwert: Weiß=0.61/Schwarz=0.12 (sehr präzise) .  Fehler:       	Weiß=7     	Schwarz=2     Ungenau:       	Weiß=3     	Schwarz=3     OK:         	Weiß=12    	Schwarz=9     Bester:       	Weiß=2     	Schwarz=4     Stark:        	Weiß=1     	Schwarz=4     Brilliant:      	---       	Schwarz=1} 0-1

[Event "2nd Cambridge Open 2024"]
[Site "Cambridge"]
[Date "2024.02.21"]
[Round "4.7"]
[White "Golubovic, Boris"]
[Black "Sivanandan, Bodhana"]
[Result "1-0"]
[ECO "D46"]
[WhiteElo "2342"]
[BlackElo "1856"]
[Annotator "RC"]
[PlyCount "123"]
[EventDate "2024.02.18"]
[EventType "swiss"]
[EventCountry "ENG"]
[SourceTitle "playchess.com"]
[Source "ChessBase"]
[SourceQuality "1"]
[TimeControl "5400+30"]

1. c4 {[%emt 0:00:01]} c6 {[%emt 0:07:15]} 2. Nf3 {[%emt 0:04:16]} Nf6 {[%emt 0:01:12]} 3. Nc3 {[%emt 0:05:29]} d5 {[%emt 0:01:15]} 4. e3 {[%emt 0:00:05]} e6 {[%emt 0:00:49]} 5. d4 {[%emt 0:00:24]} Nbd7 {[%emt 0:00:34]} 6. Be2 {[%emt 0:03:08]} Bd6 {[%emt 0:02:14]} 7. O-O {[%emt 0:00:41]} O-O {[%emt 0:00:50]} 8. Qc2 {[%emt 0:00:14]} dxc4 {[%emt 0:07:11]} 9. Bxc4 {[%emt 0:03:51]} b5 {[%emt 0:01:00]} 10. Be2 {[%emt 0:14:47]} Bb7 {[%emt 0:02:07]} 11. Rd1 {[%emt 0:02:23]} Qe7 {[%emt 0:01:18]} 12. h3 {[%emt 0:16:58]} Rad8 {[%emt 0:13:29]} 13. e4 {[%emt 0:03:02]} e5 {[%emt 0:04:05]} 14. dxe5 {[%emt 0:03:41]} Nxe5 {[%emt 0:05:34]} 15. Nd4 {[%emt 0:02:42]} Ng6 {[%emt 0:03:07]} 16. Nf5 {[%emt 0:00:59]} Qe6 {[%emt 0:03:55]} 17. Nxd6 {[%emt 0:01:43]} Rxd6 {[%emt 0:00:08]} 18. Rxd6 {[%emt 0:00:04]} Qxd6 {[%emt 0:00:08]} 19. Be3 {[%emt 0:00:10]} a6 {[%emt 0:07:59]} 20. Rd1 {[%emt 0:05:11]} Qe5 {[%emt 0:00:53]} 21. b4 {[%emt 0:08:20]} Re8 {[%emt 0:03:52]} 22. Bf1 {[%emt 0:00:16]} h6 {[%emt 0:00:19]} 23. f3 {[%emt 0:02:22]} Nh5 {[%emt 0:03:58]} 24. Ne2 {[%emt 0:00:47]} Ngf4 {[%emt 0:02:40]} 25. Nxf4 {[%emt 0:01:17]} Nxf4 {[%emt 0:00:11]} 26. Qc5 {[%emt 0:00:19]} Qxc5 {[%emt 0:02:01]} 27. Bxc5 {[%emt 0:01:03]} Ne6 {[%emt 0:01:27]} 28. Bb6 {[%emt 0:01:12]} Kf8 {[%emt 0:02:05]} 29. Kf2 {[%emt 0:02:02]} Ke7 {[%emt 0:01:37]} 30. Ke3 {[%emt 0:00:57]} g6 {[%emt 0:03:39]} 31. f4 {[%emt 0:03:01]} f5 {[%emt 0:00:22]} 32. Bd3 {[%emt 0:05:43]} fxe4 {[%emt 0:02:45]} 33. Bxe4 {[%emt 0:00:07]} Rg8 {[%emt 0:06:41]} 34. g4 {[%emt 0:01:39]} h5 {[%emt 0:01:00]} 35. g5 {[%emt 0:00:31]} h4 {[%emt 0:01:34]} 36. Bc5+ {[%emt 0:00:22]} Nxc5 37. bxc5 {[%emt 0:00:01]} Bc8 {[%emt 0:00:26]} 38. Bxc6 {[%emt 0:00:15]} Bxh3 {[%emt 0:00:34]} 39. Rh1 {[%emt 0:01:56]} Bd7 {[%emt 0:00:14]} 40. Bxd7 {[%emt 0:01:07]} Kxd7 {[%emt 0:00:06]} 41. Rxh4 {[%emt 0:00:04]} Kc6 {[%emt 0:00:08]} 42. f5 {[%emt 0:03:03]} gxf5 {[%emt 0:00:10]} 43. Kf4 {[%emt 0:00:01]} Kxc5 {[%emt 0:00:11]} 44. Kxf5 {[%emt 0:00:02]} a5 {[%emt 0:00:10]} 45. g6 {[%emt 0:00:11]} b4 {[%emt 0:00:16]} 46. Kf6 {[%emt 0:00:14]} a4 {[%emt 0:00:48]} 47. g7 {[%emt 0:01:49]} b3 {[%emt 0:00:23]} 48. a3 {[%emt 0:00:57]} b2 {[%emt 0:01:55]} 49. Rb4 {[%emt 0:00:10]} Ra8 {[%emt 0:00:51]} 50. Rxb2 {[%emt 0:00:15]} Kc4 {[%emt 0:00:30]} 51. Rb4+ {[%emt 0:00:10]} Kc3 {[%emt 0:00:12]} 52. Kf7 {[%emt 0:00:15]} Ra7+ {[%emt 0:00:23]} 53. Kg6 {[%emt 0:00:07]} Ra8 {[%emt 0:00:17]} 54. Kh7 {[%emt 0:00:11]} Ra7 {[%emt 0:00:18]} 55. Kh8 {[%emt 0:00:09]} Rxg7 {[%emt 0:00:20]} 56. Kxg7 {[%emt 0:00:09]} Kc2 {[%emt 0:00:18]} 57. Kf6 {[%emt 0:00:07]} Kc3 {[%emt 0:00:19]} 58. Ke5 {[%emt 0:00:10]} Kc2 {[%emt 0:00:11]} 59. Kd4 {[%emt 0:00:09]} Kd1 {[%emt 0:00:14]} 60. Kd3 {[%emt 0:00:29]} Kc1 {[%emt 0:00:11]} 61. Rb5 {[%emt 0:00:07]} Kd1 {[%emt 0:00:06]} 62. Rb1# {[%emt 0:00:11]} 1-0

[Event "2nd Cambridge Open 2024"]
[Site "Cambridge"]
[Date "2024.02.21"]
[Round "4.8"]
[White "Dishman, Stephen"]
[Black "Gasanov, Eldar"]
[Result "1/2-1/2"]
[ECO "A30"]
[WhiteElo "2273"]
[BlackElo "2487"]
[Annotator "RC"]
[PlyCount "48"]
[EventDate "2024.02.18"]
[EventType "swiss"]
[EventCountry "ENG"]
[SourceTitle "playchess.com"]
[Source "ChessBase"]
[SourceQuality "1"]
[TimeControl "5400+30"]

1. Nf3 {[%emt 0:00:03]} c5 {[%emt 0:01:53]} 2. c4 {[%emt 0:00:13]} Nc6 {[%emt 0:00:14]} 3. b3 {[%emt 0:01:37]} e5 {[%emt 0:01:04]} 4. Bb2 {[%emt 0:00:24]} d6 {[%emt 0:00:09]} 5. g3 {[%emt 0:00:35]} g6 {[%emt 0:00:28]} 6. Bg2 {[%emt 0:00:17]} Bg7 {[%emt 0:00:19]} 7. O-O {[%emt 0:00:32]} Nge7 {[%emt 0:00:17]} 8. Nc3 {[%emt 0:01:17]} O-O {[%emt 0:00:27]} 9. d3 {[%emt 0:00:13]} h6 {[%emt 0:00:34]} 10. Nd2 {[%emt 0:02:13]} Be6 {[%emt 0:01:52]} 11. a3 {[%emt 0:00:58]} Qd7 {[%emt 0:06:10]} 12. Nd5 {[%emt 0:00:09]} Bh3 {[%emt 0:03:36]} 13. Bxh3 {[%emt 0:00:09]} Qxh3 {[%emt 0:00:06]} 14. b4 {[%emt 0:00:17]} b6 {[%emt 0:19:34]} 15. b5 {[%emt 0:05:22]} Nxd5 {[%emt 0:03:03]} 16. cxd5 {[%emt 0:00:40]} Ne7 {[%emt 0:01:09]} 17. e4 {[%emt 0:00:21]} Qd7 {[%emt 0:08:52]} 18. a4 {[%emt 0:01:58]} f5 {[%emt 0:00:04]} 19. f3 {[%emt 0:08:58]} g5 {[%emt 0:05:01]} 20. Nc4 {[%emt 0:03:24]} Ng6 {[%emt 0:05:01]} 21. Qe2 {[%emt 0:03:47]} f4 {[%emt 0:06:03]} 22. a5 {[%emt 0:15:38]} Rab8 {[%emt 0:01:45]} 23. axb6 {[%emt 0:01:35]} axb6 {[%emt 0:00:03]} 24. g4 {[%emt 0:07:09]} Rf6 {[%emt 0:08:37]} 1/2-1/2

[Event "2nd Cambridge Open 2024"]
[Site "Cambridge"]
[Date "2024.02.21"]
[Round "4.9"]
[White "Royal, Shreyas"]
[Black "Bradbury, Neil H"]
[Result "1-0"]
[ECO "E08"]
[WhiteElo "2459"]
[BlackElo "2217"]
[Annotator "TA"]
[PlyCount "63"]
[EventDate "2024.02.18"]
[EventType "swiss"]
[EventCountry "ENG"]
[SourceTitle "playchess.com"]
[Source "ChessBase"]
[SourceQuality "1"]
[TimeControl "5400+30"]

{[%evp 20,63,37,23,47,16,51,36,53,42,54,28,45,40,56,44,81,84,278,269,288,293,277,291,279,274,293,286,297,266,265,264,406,416,421,312,448,426,450,435,614,641,636,645,970,649]} 1. d4 {[%emt 0:00:06]} Nf6 {[%emt 0:01:38]} 2. c4 {[%emt 0:00:06]} e6 {[%emt 0:00:04]} 3. g3 {[%emt 0:00:05]} Bb4+ {[%emt 0:02:58]} 4. Bd2 {[%emt 0:00:09]} Be7 {[%emt 0:00:35]} 5. Bg2 {[%emt 0:00:08]} d5 {[%emt 0:00:20]} 6. Nf3 {[%emt 0:00:08]} O-O {[%emt 0:00:11]} 7. O-O {[%emt 0:00:06]} c6 {[%emt 0:02:10]} 8. Qc2 {[%emt 0:00:08]} Nbd7 {[%emt 0:00:11]} 9. Bf4 {[%emt 0:00:06]} Nh5 {[%emt 0:04:03]} 10. Bc1 {[%emt 0:00:10]} f5 {[%emt 0:01:24]} 11. b3 {[%emt 0:00:05]} a5 {[%emt 0:01:17]} 12. Ba3 {[%emt 0:04:18]} Bb4 {[%emt 0:07:00]} 13. Bxb4 {[%emt 0:07:01]} axb4 {[%emt 0:00:06] White is slightly better.} 14. Ne1 {[%emt 0:00:47]} Qf6 {[%emt 0:05:26]} 15. e3 {[%emt 0:03:55][%cal Be2e3,Be3d4,Bd4c5][%mdl 32]} c5 {[%emt 0:12:04]} 16. Qd1 {[%emt 0:02:44]} (16. cxd5 cxd4 17. dxe6 dxe3 18. exd7 Qxa1 19. dxc8=B (19. dxc8=R Raxc8 20. Qd1 exf2+ 21. Rxf2 Nf6 $17) 19... Raxc8 $15) 16... dxc4 $1 {[%emt 0:04:57]} 17. bxc4 {[%emt 0:01:11]} (17. Qxh5 cxd4 18. exd4 (18. bxc4 $2 d3 $19) 18... Qxd4 $15) 17... cxd4 {[%emt 0:00:53]} 18. exd4 {[%emt 0:00:52][%cal Oe1c2]} (18. Qxh5 $2 {perishes.} d3 19. Nxd3 Qxa1 20. Nxb4 Qb2 $17) 18... Nc5 $2 {[%emt 0:04:55] [#] Black cannot hold the game after this.} (18... f4 $16) 19. Nc2 $1 $18 {[%emt 0:00:27]} ({Not} 19. Qxh5 Qxd4 20. Nc2 Qb2 $16) 19... g6 {[%emt 0:20:49]} 20. dxc5 {[%emt 0:01:30][%cal Ob1d2] Hoping for Nd2!} b3 {[%emt 0:00:04]} 21. axb3 {[%emt 0:00:21]} Rxa1 {[%emt 0:00:05]} 22. Nxa1 {[%emt 0:00:08]} Qxa1 {[%emt 0:00:03]} 23. Qd2 {[%emt 0:00:23] Against Qa5} Nf6 {[%emt 0:04:47]} 24. Rd1 {[%emt 0:01:19]} Qe5 {[%emt 0:03:57]} 25. b4 {[%emt 0:03:35]} Kg7 {[%emt 0:04:44]} (25... Ne4 {was necessary.} 26. Qe2 Qf6 27. Bxe4 fxe4) 26. Nc3 {[%emt 0:00:33][%cal Bb1c3,Bc3b5,Bb5d6][%mdl 32]} f4 {[%emt 0:02:23][%cal Bf5f4,Bf4f3][%mdl 32]} 27. Qd4 {[%emt 0:03:14]} Qh5 {[%emt 0:06:41]} (27... Qxd4 $142 28. Rxd4 e5) 28. Re1 {[%emt 0:00:54] White is clearly winning.} ({Worse is} 28. Qxf4 Ng4 $11) 28... f3 {[%emt 0:03:05]} 29. Bf1 {[%emt 0:00:26] Black is weak on the dark squares} Qf5 {[%emt 0:03:27]} (29... Kg8 $142 30. h3 Qh6) 30. Nb5 {[%emt 0:01:43]} Kg8 {[%emt 0:04:26]} 31. Nd6 {[%emt 0:00:12]} Qg5 {[%emt 0:00:33]} 32. h4 {[%emt 0:00:44] Weighted Error Value: White=0.11 (very precise) /Black=0.48.  Loses game:     	---       	Black=1      Mistake:       	---       	Black=3      Inaccurate:     	White=2     	Black=2      OK:         	White=11    	Black=6      Best:        	---       	Black=1      Strong:       	White=1     	Black=1} 1-0

[Event "2nd Cambridge Open 2024"]
[Site "Cambridge"]
[Date "2024.02.21"]
[Round "4.10"]
[White "McClement, Andrew"]
[Black "Wadsworth, Matthew J"]
[Result "0-1"]
[ECO "E18"]
[WhiteElo "2223"]
[BlackElo "2450"]
[Annotator "TA"]
[PlyCount "110"]
[EventDate "2024.02.18"]
[EventType "swiss"]
[EventCountry "ENG"]
[SourceTitle "playchess.com"]
[Source "ChessBase"]
[SourceQuality "1"]
[TimeControl "5400+30"]

{[%evp 19,109,0,14,0,0,-2,0,0,0,0,0,0,0,0,0,6,7,0,0,4,10,8,20,15,15,12,19,18,36,0,0,0,0,0,0,0,0,0,0,0,0,-9,-15,-105,-28,-203,-212,-215,-210,-193,-193,-198,-197,-201,-200,-203,-156,-131,-89,-89,-99,-175,-154,-166,-138,-160,-115,-309,-295,-334,-205,-879,-811,-5716,-4914,-29989,-29990,-29995,-29994,-29995,-29996,-29996,-29995,-29995,-29996,-29996,-29997,-29997,-29998,-29998,-29999,-29999]} 1. Nf3 {[%emt 0:00:03]} Nf6 {[%emt 0:00:07]} 2. c4 {[%emt 0:00:01]} e6 {[%emt 0:00:12]} 3. g3 {[%emt 0:00:05]} b6 {[%emt 0:00:08]} 4. Bg2 {[%emt 0:00:14]} Bb7 {[%emt 0:01:03]} 5. O-O {[%emt 0:00:33]} Be7 {[%emt 0:00:06]} 6. Nc3 {[%emt 0:00:05]} O-O {[%emt 0:00:12]} 7. d4 {[%emt 0:00:05]} Ne4 {[%emt 0:00:26]} 8. Nxe4 {[%emt 0:00:08]} Bxe4 {[%emt 0:00:11]} 9. Nh4 {[%emt 0:00:05]} Bxg2 {[%emt 0:00:58]} 10. Nxg2 {[%emt 0:00:02]} d5 {[%emt 0:00:53]} 11. Qd3 {[%emt 0:06:21]} Nc6 {[%emt 0:05:34]} 12. Rd1 {[%emt 0:01:32]} e5 {[%emt 0:10:37]} 13. cxd5 {[%emt 0:08:56] The position is equal.} Qxd5 {[%emt 0:06:35]} 14. dxe5 {[%emt 0:00:30]} Qxd3 {[%emt 0:05:29]} 15. Rxd3 {[%emt 0:00:37]} Nxe5 {[%emt 0:00:07]} 16. Rd1 {[%emt 0:00:57]} Rfd8 {[%emt 0:11:23]} 17. Bf4 {[%emt 0:03:23][%cal Bc1f4,Bf4c7,Bc7d6][%mdl 32]} Bf6 {[%emt 0:00:11]} 18. Rac1 {[%emt 0:03:13]} Ng6 {[%emt 0:10:57]} 19. Bxc7 {[%emt 0:04:10]} Rxd1+ {[%emt 0:00:09]} 20. Rxd1 {[%emt 0:00:01]} Rc8 {[%emt 0:02:21]} 21. Bd6 {[%emt 0:00:53]} Bxb2 {[%emt 0:04:44]} 22. Ne3 {[%emt 0:01:11]} h5 {[%emt 0:00:55]} 23. Kg2 {[%emt 0:01:58]} Be5 {[%emt 0:06:43]} 24. f4 {[%emt 0:11:24]} Bxd6 {[%emt 0:02:25]} 25. Rxd6 $11 {[%emt 0:00:04][%mdl 4096] Endgame. KRN-KRN} Nf8 {[%emt 0:00:09]} 26. Rd3 {[%emt 0:05:19]} Rc5 {[%emt 0:03:29]} 27. Ra3 {[%emt 0:01:11]} a5 {[%emt 0:01:10]} 28. Kf3 {[%emt 0:04:27]} Ne6 {[%emt 0:03:10]} 29. Ke4 {[%emt 0:02:27]} g6 {[%emt 0:06:01]} 30. h3 {[%emt 0:03:26]} f5+ {[%emt 0:01:56]} 31. Kd3 {[%emt 0:01:23]} (31. Kf3 $1 $11) 31... Rc1 {[%emt 0:00:25]} (31... h4 $1 $17 {[%cal Rh4g3]} 32. gxh4 Nxf4+ 33. Kd2 Kg7 (33... Nxh3 34. Nxf5 Rxf5 35. Rxh3 $15)) 32. Nc4 $2 {[%emt 0:05:57] [#]} (32. Kd2 $11 {and White is okay.} Rc6 33. Nd5) 32... h4 $1 $19 {[%emt 0:02:10][%mdl 512]} 33. gxh4 {[%emt 0:04:53]} Nxf4+ {[%emt 0:00:08]} 34. Kd4 {[%emt 0:00:03]} Nxe2+ {[%emt 0:00:30]} 35. Kd3 {[%emt 0:05:24][%cal Oc4b6]} Nf4+ {[%emt 0:00:07]} 36. Kd4 {[%emt 0:00:06]} Ne6+ {[%emt 0:01:25]} 37. Kd3 {[%emt 0:12:49]} Rh1 {[%emt 0:02:34] [#] White must now prevent ...b5.} 38. Kd2 {[%emt 0:00:53]} Rh2+ {[%emt 0:00:39]} 39. Kd1 {[%emt 0:00:22]} b5 {[%emt 0:03:51] Black is much more active.} 40. Ne5 {[%emt 0:09:29]} (40. Nxa5 $17 {is a better defense.} Kg7 41. Nc6) 40... a4 {[%emt 0:02:00]} (40... Rh1+ 41. Kd2 $17) 41. Nxg6 {[%emt 0:00:16]} Kg7 {[%emt 0:01:47]} 42. Ne5 {[%emt 0:01:51]} Kf6 {[%emt 0:00:45]} 43. Nc6 {[%emt 0:01:26]} (43. Nd7+ $17 Ke7 44. Ne5) 43... f4 {[%emt 0:00:37]} 44. h5 {[%emt 0:01:32]} Kg5 {[%emt 0:01:01]} 45. Na7 $2 {[%emt 0:00:45]} (45. Rd3) 45... b4 {[%emt 0:03:21]} ({Inferior is} 45... Kxh5 46. Nxb5 Kg5 47. Rxa4 $11) (45... Nd4 46. Rd3 Rh1+ 47. Kd2 $19) 46. Rxa4 {[%emt 0:00:51]} f3 {[%emt 0:00:01]} 47. Ke1 {[%emt 0:01:28]} Nd4 {[%emt 0:00:01] Black mates.} 48. Nb5 {[%emt 0:00:36]} Nc2+ {[%emt 0:00:23]} 49. Kf1 {[%emt 0:00:02]} Ne3+ {[%emt 0:00:10]} 50. Kg1 {[%emt 0:00:02]} f2+ {[%emt 0:00:22]} (50... Rxh3 51. Nd4 $17) 51. Kxh2 {[%emt 0:00:06]} f1=Q {[%emt 0:00:06][%csl Ge3][%cal Rf1g2]} ({Stronger than} 51... f1=R 52. Nd6 (52. Rxb4 Rf2+ 53. Kg3 Rxa2 $11) 52... Rf4 53. h6 Kxh6 54. Kg3 $11) 52. h4+ {[%emt 0:00:30]} Kxh5 {[%emt 0:00:10][%csl Ge3][%cal Rf1g2]} 53. Kg3 {[%emt 0:00:48]} Nf5+ {[%emt 0:00:08]} 54. Kh2 {[%emt 0:00:07]} Qf2+ {[%emt 0:00:04]} 55. Kh1 {[%emt 0:00:05]} Ng3# {[%emt 0:00:08] Weighted Error Value: White=0.59/Black=0.09 (flawless) .  Loses game:     	White=2     	---        Mistake:       	White=3     	Black=1      Inaccurate:     	White=2     	Black=2      OK:         	White=11    	Black=17     Best:        	White=6     	Black=5      Brilliant:      	---       	Black=1} 0-1